[Event "Titled Tuesday Blitz January 10 Early 2023"]
[White "Khalafova, Narmin"]
[Black "Kozin, Yuri"]
[WhiteFideId "13402625"]
[BlackFideId "4129920"]
[WhiteElo "2246"]
[BlackElo "2251"]
[Result "1-0"]
[Round "07"]
[TimeControl "180+2"]
[Date "2023.01.10"]
[WhiteClock "0:00:48"]
[BlackClock "0:00:05"]

1. e4 {[%clk 0:03:00]}  c5 {[%clk 0:02:52]} 2. Be2 {[%clk 0:02:58]}  e6 {[%clk 0:02:52]} 3. f4 {[%clk 0:02:57]}  d6 {[%clk 0:02:50]} 4. Nf3 {[%clk 0:02:56]}  Nf6 {[%clk 0:02:50]} 5. d3 {[%clk 0:02:56]}  c4 {[%clk 0:02:50]} 6. O-O {[%clk 0:02:54]}  cxd3 {[%clk 0:02:51]} 7. Bxd3 {[%clk 0:02:53]}  Be7 {[%clk 0:02:52]} 8. Nc3 {[%clk 0:02:52]}  O-O {[%clk 0:02:52]} 9. Kh1 {[%clk 0:02:52]}  a6 {[%clk 0:02:52]} 10. Be3 {[%clk 0:02:48]}  Qc7 {[%clk 0:02:52]} 11. Qe1 {[%clk 0:02:45]}  b5 {[%clk 0:02:51]} 12. Qg3 {[%clk 0:02:43]}  b4 {[%clk 0:02:40]} 13. Nd1 {[%clk 0:02:36]}  Bb7 {[%clk 0:02:39]} 14. Nf2 {[%clk 0:02:36]}  Nbd7 {[%clk 0:02:37]} 15. Rae1 {[%clk 0:02:28]}  Nc5 {[%clk 0:02:27]} 16. Bd4 {[%clk 0:02:28]}  Nxd3 {[%clk 0:02:15]} 17. cxd3 {[%clk 0:02:28]}  g6 {[%clk 0:01:59]} 18. e5 {[%clk 0:02:15]}  Nh5 {[%clk 0:01:57]} 19. Qg4 {[%clk 0:02:11]}  Bxf3 {[%clk 0:01:49]} 20. Qxf3 {[%clk 0:02:09]}  dxe5 {[%clk 0:01:49]} 21. fxe5 {[%clk 0:01:59]}  Rac8 {[%clk 0:01:47]} 22. Ne4 {[%clk 0:01:57]}  Qc6 {[%clk 0:01:38]} 23. Be3 {[%clk 0:01:25]}  f5 {[%clk 0:01:07]} 24. exf6 {[%clk 0:01:19]}  Nxf6 {[%clk 0:01:07]} 25. Bh6 {[%clk 0:01:17]}  Rf7 {[%clk 0:00:43]} 26. Ng5 {[%clk 0:01:12]}  Qxf3 {[%clk 0:00:43]} 27. Rxf3 {[%clk 0:01:10]}  Rc2 {[%clk 0:00:36]} 28. Ref1 {[%clk 0:01:00]}  Rc5 {[%clk 0:00:22]} 29. Nxf7 {[%clk 0:00:51]}  Kxf7 {[%clk 0:00:22]} 30. g4 {[%clk 0:00:51]}  g5 {[%clk 0:00:19]} 31. h4 {[%clk 0:00:51]}  Kg6 {[%clk 0:00:16]} 32. Bxg5 {[%clk 0:00:48]}  Nd5 {[%clk 0:00:07]} 33. Bxe7 {[%clk 0:00:48]}  Nxe7 {[%clk 0:00:05]} 34. Rf6+ {[%clk 0:00:48]}  Kg7 {[%clk 0:00:05]} 35. Rf7+ {[%clk 0:00:48]} 1-0


[Site "https://www.chess.com"]

[Event "Titled Tuesday Blitz January 10 Early 2023"]
[White "Kaminski, Victor"]
[Black "Parpiev, Isaak"]
[WhiteFideId "1131630"]
[BlackFideId "34281576"]
[WhiteElo "2247"]
[BlackElo "2167"]
[Result "0-1"]
[Round "07"]
[TimeControl "180+2"]
[Date "2023.01.10"]
[WhiteClock "0:00:46"]
[BlackClock "0:01:14"]

1. e4 {[%clk 0:02:58]}  e5 {[%clk 0:02:56]} 2. Nf3 {[%clk 0:02:58]}  Nc6 {[%clk 0:02:56]} 3. Bb5 {[%clk 0:02:57]}  a6 {[%clk 0:02:53]} 4. Ba4 {[%clk 0:02:57]}  Nf6 {[%clk 0:02:52]} 5. O-O {[%clk 0:02:57]}  Be7 {[%clk 0:02:52]} 6. d3 {[%clk 0:02:57]}  b5 {[%clk 0:02:50]} 7. Bb3 {[%clk 0:02:57]}  O-O {[%clk 0:02:50]} 8. Nc3 {[%clk 0:02:56]}  d6 {[%clk 0:02:49]} 9. a4 {[%clk 0:02:50]}  Rb8 {[%clk 0:02:46]} 10. axb5 {[%clk 0:02:46]}  axb5 {[%clk 0:02:46]} 11. Nd5 {[%clk 0:02:46]}  Be6 {[%clk 0:02:31]} 12. Ra6 {[%clk 0:02:30]}  Bxd5 {[%clk 0:02:21]} 13. exd5 {[%clk 0:02:26]}  Nb4 {[%clk 0:02:21]} 14. c4 {[%clk 0:02:22]}  Nxa6 {[%clk 0:02:21]} 15. cxb5 {[%clk 0:02:10]}  Nb4 {[%clk 0:02:14]} 16. Bc4 {[%clk 0:01:55]}  Nbxd5 {[%clk 0:02:12]} 17. d4 {[%clk 0:01:54]}  e4 {[%clk 0:02:09]} 18. Ng5 {[%clk 0:01:53]}  h6 {[%clk 0:02:06]} 19. Nxe4 {[%clk 0:01:53]}  Nxe4 {[%clk 0:02:03]} 20. Bxd5 {[%clk 0:01:53]}  Nf6 {[%clk 0:02:03]} 21. Bc6 {[%clk 0:01:53]}  d5 {[%clk 0:02:02]} 22. Qf3 {[%clk 0:01:46]}  Bd6 {[%clk 0:02:01]} 23. Bd2 {[%clk 0:01:45]}  Re8 {[%clk 0:01:55]} 24. Bxe8 {[%clk 0:01:39]}  Qxe8 {[%clk 0:01:56]} 25. Bxh6 {[%clk 0:01:36]}  Qe4 {[%clk 0:01:53]} 26. Qxe4 {[%clk 0:01:28]}  Nxe4 {[%clk 0:01:54]} 27. Bc1 {[%clk 0:01:23]}  Rxb5 {[%clk 0:01:52]} 28. f3 {[%clk 0:01:22]}  Nf6 {[%clk 0:01:52]} 29. Re1 {[%clk 0:01:22]}  Rb4 {[%clk 0:01:45]} 30. Rd1 {[%clk 0:01:20]}  Nd7 {[%clk 0:01:26]} 31. Kf2 {[%clk 0:01:16]}  Nb6 {[%clk 0:01:24]} 32. Rd2 {[%clk 0:00:51]}  Bf4 {[%clk 0:01:19]} 33. Rc2 {[%clk 0:00:51]}  Bxc1 {[%clk 0:01:19]} 34. Rxc1 {[%clk 0:00:52]}  Rxb2+ {[%clk 0:01:19]} 35. Kg3 {[%clk 0:00:52]}  Nc4 {[%clk 0:01:18]} 36. Re1 {[%clk 0:00:50]}  Kf8 {[%clk 0:01:18]} 37. Ra1 {[%clk 0:00:50]}  Ke7 {[%clk 0:01:15]} 38. Ra7 {[%clk 0:00:49]}  Kd7 {[%clk 0:01:15]} 39. Rb7 {[%clk 0:00:46]}  Rxb7 {[%clk 0:01:14]} 0-1


[Site "https://www.chess.com"]

[Event "Titled Tuesday Blitz January 10 Early 2023"]
[White "Berezin, Viktor"]
[Black "Jiganchine, Roman"]
[WhiteFideId "14107872"]
[BlackFideId "2603667"]
[WhiteElo "2307"]
[BlackElo "2205"]
[Result "1-0"]
[Round "07"]
[TimeControl "180+2"]
[Date "2023.01.10"]
[WhiteClock "0:01:13"]
[BlackClock "0:00:07"]

1. d4 {[%clk 0:03:00]}  d5 {[%clk 0:02:55]} 2. c4 {[%clk 0:03:00]}  e6 {[%clk 0:02:55]} 3. Nf3 {[%clk 0:02:59]}  Nf6 {[%clk 0:02:56]} 4. g3 {[%clk 0:02:59]}  c6 {[%clk 0:02:53]} 5. Bg2 {[%clk 0:03:00]}  Be7 {[%clk 0:02:53]} 6. O-O {[%clk 0:03:00]}  O-O {[%clk 0:02:54]} 7. Nc3 {[%clk 0:03:00]}  Nbd7 {[%clk 0:02:53]} 8. Qc2 {[%clk 0:03:00]}  b6 {[%clk 0:02:52]} 9. e4 {[%clk 0:02:59]}  Bb7 {[%clk 0:02:46]} 10. e5 {[%clk 0:02:57]}  Ne8 {[%clk 0:02:45]} 11. cxd5 {[%clk 0:02:57]}  cxd5 {[%clk 0:02:45]} 12. h4 {[%clk 0:02:58]}  Rc8 {[%clk 0:02:39]} 13. Bg5 {[%clk 0:02:56]}  h6 {[%clk 0:02:28]} 14. Bxe7 {[%clk 0:02:54]}  Qxe7 {[%clk 0:02:29]} 15. Rac1 {[%clk 0:02:55]}  Nc7 {[%clk 0:02:16]} 16. h5 {[%clk 0:02:52]}  Nb5 {[%clk 0:02:10]} 17. Qd2 {[%clk 0:02:40]}  Nxc3 {[%clk 0:02:08]} 18. bxc3 {[%clk 0:02:40]}  Ba6 {[%clk 0:02:06]} 19. Rfe1 {[%clk 0:02:39]}  Bc4 {[%clk 0:02:04]} 20. Qf4 {[%clk 0:02:34]}  Rc7 {[%clk 0:01:54]} 21. g4 {[%clk 0:02:34]}  Rfc8 {[%clk 0:01:15]} 22. g5 {[%clk 0:02:32]}  hxg5 {[%clk 0:01:15]} 23. Nxg5 {[%clk 0:02:33]}  Nf8 {[%clk 0:01:15]} 24. Re3 {[%clk 0:02:25]}  Nh7 {[%clk 0:00:55]} 25. Rg3 {[%clk 0:02:12]}  Nxg5 {[%clk 0:00:51]} 26. Rxg5 {[%clk 0:02:13]}  Kh8 {[%clk 0:00:28]} 27. h6 {[%clk 0:02:06]}  g6 {[%clk 0:00:23]} 28. Rg3 {[%clk 0:01:48]}  Bxa2 {[%clk 0:00:20]} 29. Qe3 {[%clk 0:01:37]}  b5 {[%clk 0:00:20]} 30. Ra1 {[%clk 0:01:33]}  Bc4 {[%clk 0:00:19]} 31. f4 {[%clk 0:01:28]}  b4 {[%clk 0:00:18]} 32. cxb4 {[%clk 0:01:23]}  Qxb4 {[%clk 0:00:19]} 33. f5 {[%clk 0:01:24]}  exf5 {[%clk 0:00:17]} 34. e6 {[%clk 0:01:21]}  Re7 {[%clk 0:00:17]} 35. Qe5+ {[%clk 0:01:18]}  f6 {[%clk 0:00:15]} 36. Qxf6+ {[%clk 0:01:18]}  Kh7 {[%clk 0:00:14]} 37. Qxg6+ {[%clk 0:01:16]}  Kh8 {[%clk 0:00:14]} 38. Qf6+ {[%clk 0:01:14]}  Kh7 {[%clk 0:00:11]} 39. Rg7+ {[%clk 0:01:14]}  Kh8 {[%clk 0:00:09]} 40. Rxe7+ {[%clk 0:01:13]}  Kg8 {[%clk 0:00:09]} 41. Qf7+ {[%clk 0:01:12]}  Kh8 {[%clk 0:00:07]} 42. Qh7# {[%clk 0:01:13]} 1-0


[Site "https://www.chess.com"]

[Event "Titled Tuesday Blitz January 10 Early 2023"]
[White "Wilson, Elvin"]
[Black "Baches Garcia, Guillermo"]
[WhiteFideId "2014874"]
[BlackFideId "2209764"]
[WhiteElo "2183"]
[BlackElo "2327"]
[Result "1-0"]
[Round "07"]
[TimeControl "180+2"]
[Date "2023.01.10"]
[WhiteClock "0:00:17"]
[BlackClock "0:00:01"]

1. c4 {[%clk 0:03:00]}  e5 {[%clk 0:02:59]} 2. Nc3 {[%clk 0:02:59]}  Nf6 {[%clk 0:03:00]} 3. g3 {[%clk 0:02:59]}  d5 {[%clk 0:02:59]} 4. cxd5 {[%clk 0:02:59]}  Nxd5 {[%clk 0:03:00]} 5. Bg2 {[%clk 0:03:00]}  Nb6 {[%clk 0:03:00]} 6. e3 {[%clk 0:02:59]}  Be7 {[%clk 0:02:58]} 7. Nge2 {[%clk 0:02:59]}  O-O {[%clk 0:02:57]} 8. O-O {[%clk 0:02:59]}  c5 {[%clk 0:02:54]} 9. f4 {[%clk 0:02:57]}  Nc6 {[%clk 0:02:52]} 10. Bxc6 {[%clk 0:02:50]}  bxc6 {[%clk 0:02:52]} 11. fxe5 {[%clk 0:02:51]}  c4 {[%clk 0:02:31]} 12. b3 {[%clk 0:02:37]}  Ba6 {[%clk 0:02:17]} 13. bxc4 {[%clk 0:02:28]}  Bxc4 {[%clk 0:02:12]} 14. d4 {[%clk 0:02:23]}  c5 {[%clk 0:01:59]} 15. Rf2 {[%clk 0:02:15]}  Rc8 {[%clk 0:01:50]} 16. Ba3 {[%clk 0:02:03]}  cxd4 {[%clk 0:01:39]} 17. Bxe7 {[%clk 0:02:02]}  Qxe7 {[%clk 0:01:40]} 18. exd4 {[%clk 0:02:00]}  Rfd8 {[%clk 0:01:35]} 19. Qb1 {[%clk 0:01:22]}  Nd5 {[%clk 0:01:23]} 20. Qe4 {[%clk 0:01:05]}  Nxc3 {[%clk 0:01:08]} 21. Nxc3 {[%clk 0:01:05]}  Be6 {[%clk 0:01:08]} 22. Qe3 {[%clk 0:00:47]}  Qb4 {[%clk 0:00:42]} 23. Ne2 {[%clk 0:00:44]}  Bd5 {[%clk 0:00:33]} 24. Rd1 {[%clk 0:00:34]}  Ba8 {[%clk 0:00:23]} 25. Nf4 {[%clk 0:00:31]}  Qb6 {[%clk 0:00:14]} 26. Rfd2 {[%clk 0:00:29]}  Re8 {[%clk 0:00:10]} 27. Kf2 {[%clk 0:00:28]}  Rcd8 {[%clk 0:00:10]} 28. h4 {[%clk 0:00:25]}  Qb7 {[%clk 0:00:09]} 29. d5 {[%clk 0:00:24]}  Qc7 {[%clk 0:00:09]} 30. e6 {[%clk 0:00:24]}  fxe6 {[%clk 0:00:09]} 31. Nxe6 {[%clk 0:00:22]}  Qf7+ {[%clk 0:00:07]} 32. Qf4 {[%clk 0:00:22]}  Qxf4+ {[%clk 0:00:05]} 33. Nxf4 {[%clk 0:00:21]}  Rd7 {[%clk 0:00:06]} 34. Re2 {[%clk 0:00:21]}  Red8 {[%clk 0:00:05]} 35. Re5 {[%clk 0:00:20]}  h6 {[%clk 0:00:05]} 36. h5 {[%clk 0:00:20]}  Kf7 {[%clk 0:00:05]} 37. Rd4 {[%clk 0:00:19]}  Rd6 {[%clk 0:00:05]} 38. g4 {[%clk 0:00:18]}  R8d7 {[%clk 0:00:05]} 39. Ke3 {[%clk 0:00:18]}  Kf6 {[%clk 0:00:05]} 40. Rf5+ {[%clk 0:00:18]}  Ke7 {[%clk 0:00:05]} 41. Re5+ {[%clk 0:00:17]}  Kd8 {[%clk 0:00:05]} 42. Ke4 {[%clk 0:00:17]}  Rf7 {[%clk 0:00:04]} 43. Ne6+ {[%clk 0:00:17]}  Kd7 {[%clk 0:00:03]} 44. Nc5+ {[%clk 0:00:17]}  Kd8 {[%clk 0:00:03]} 45. Ne6+ {[%clk 0:00:17]}  Kd7 {[%clk 0:00:03]} 46. Nf4 {[%clk 0:00:17]}  Rf8 {[%clk 0:00:02]} 47. Ng6 {[%clk 0:00:17]}  Rb8 {[%clk 0:00:02]} 48. Rf5 {[%clk 0:00:17]}  Rb1 {[%clk 0:00:01]} 49. Rf7+ {[%clk 0:00:17]}  Ke8 {[%clk 0:00:01]} 50. Rxg7 {[%clk 0:00:18]}  Rf1 {[%clk 0:00:01]} 51. Nf4 {[%clk 0:00:17]} 1-0


[Site "https://www.chess.com"]

[Event "Titled Tuesday Blitz January 10 Early 2023"]
[White "Rychkov, Roman"]
[Black "Gheorghiu, Calin"]
[WhiteFideId "30985595"]
[BlackFideId "1200305"]
[WhiteElo "2023"]
[BlackElo "2313"]
[Result "0-1"]
[Round "07"]
[TimeControl "180+2"]
[Date "2023.01.10"]
[WhiteClock "0:00:07"]
[BlackClock "0:00:26"]

1. e4 {[%clk 0:03:00]}  b6 {[%clk 0:02:59]} 2. d4 {[%clk 0:02:59]}  Bb7 {[%clk 0:03:00]} 3. Nc3 {[%clk 0:03:00]}  e6 {[%clk 0:02:59]} 4. a3 {[%clk 0:03:01]}  d5 {[%clk 0:02:57]} 5. exd5 {[%clk 0:03:00]}  exd5 {[%clk 0:02:57]} 6. Nf3 {[%clk 0:02:59]}  Nf6 {[%clk 0:02:57]} 7. Bb5+ {[%clk 0:02:51]}  Nbd7 {[%clk 0:02:48]} 8. O-O {[%clk 0:02:50]}  Be7 {[%clk 0:02:44]} 9. h3 {[%clk 0:02:48]}  O-O {[%clk 0:02:43]} 10. Bf4 {[%clk 0:02:49]}  a6 {[%clk 0:02:33]} 11. Bd3 {[%clk 0:02:49]}  c5 {[%clk 0:02:33]} 12. Ne2 {[%clk 0:02:36]}  Re8 {[%clk 0:02:29]} 13. c3 {[%clk 0:02:35]}  Nf8 {[%clk 0:02:26]} 14. Re1 {[%clk 0:02:24]}  Ng6 {[%clk 0:02:24]} 15. Be3 {[%clk 0:02:23]}  Bd6 {[%clk 0:02:15]} 16. Qc1 {[%clk 0:02:14]}  Rc8 {[%clk 0:02:12]} 17. dxc5 {[%clk 0:02:03]}  bxc5 {[%clk 0:02:09]} 18. Nf4 {[%clk 0:01:52]}  d4 {[%clk 0:01:53]} 19. Nxg6 {[%clk 0:01:51]}  dxe3 {[%clk 0:01:38]} 20. Ngh4 {[%clk 0:01:51]}  exf2+ {[%clk 0:01:35]} 21. Kxf2 {[%clk 0:01:51]}  c4 {[%clk 0:01:10]} 22. Bf5 {[%clk 0:01:45]}  Qb6+ {[%clk 0:01:04]} 23. Nd4 {[%clk 0:01:22]}  Rxe1 {[%clk 0:00:57]} 24. Kxe1 {[%clk 0:00:58]}  Bg3+ {[%clk 0:00:51]} 25. Kf1 {[%clk 0:00:58]}  Re8 {[%clk 0:00:37]} 26. Nhf3 {[%clk 0:00:49]}  Bxf3 {[%clk 0:00:32]} 27. gxf3 {[%clk 0:00:48]}  Re1+ {[%clk 0:00:32]} 28. Qxe1 {[%clk 0:00:49]}  Bxe1 {[%clk 0:00:32]} 29. Rxe1 {[%clk 0:00:47]}  g6 {[%clk 0:00:33]} 30. Bc8 {[%clk 0:00:31]}  Qxb2 {[%clk 0:00:31]} 31. Bxa6 {[%clk 0:00:18]}  Qxc3 {[%clk 0:00:31]} 32. Rd1 {[%clk 0:00:18]}  Nd5 {[%clk 0:00:29]} 33. Kf2 {[%clk 0:00:09]}  Ne3 {[%clk 0:00:26]} 34. Ne2 {[%clk 0:00:07]}  Nxd1+ {[%clk 0:00:26]} 35. Kg2 {[%clk 0:00:07]} 0-1


[Site "https://www.chess.com"]

[Event "Titled Tuesday Blitz January 10 Early 2023"]
[White "Jenkins, Drake"]
[Black "Manukian, Artak"]
[WhiteFideId "2022397"]
[BlackFideId "13301373"]
[WhiteElo "2130"]
[BlackElo "2196"]
[Result "1/2-1/2"]
[Round "07"]
[TimeControl "180+2"]
[Date "2023.01.10"]
[WhiteClock "0:00:02"]
[BlackClock "0:00:12"]

1. Nf3 {[%clk 0:03:00]}  g6 {[%clk 0:02:58]} 2. c4 {[%clk 0:03:00]}  Bg7 {[%clk 0:02:59]} 3. g3 {[%clk 0:03:01]}  c5 {[%clk 0:02:57]} 4. Bg2 {[%clk 0:03:00]}  Nc6 {[%clk 0:02:58]} 5. O-O {[%clk 0:02:59]}  e5 {[%clk 0:02:57]} 6. Nc3 {[%clk 0:02:58]}  d6 {[%clk 0:02:58]} 7. a3 {[%clk 0:02:57]}  h5 {[%clk 0:02:58]} 8. h3 {[%clk 0:02:50]}  f5 {[%clk 0:02:56]} 9. d3 {[%clk 0:02:39]}  h4 {[%clk 0:02:45]} 10. Bg5 {[%clk 0:02:36]}  Bf6 {[%clk 0:02:43]} 11. gxh4 {[%clk 0:02:29]}  Nd4 {[%clk 0:02:39]} 12. e3 {[%clk 0:02:05]}  Ne6 {[%clk 0:02:30]} 13. Nd5 {[%clk 0:01:29]}  Bxg5 {[%clk 0:02:23]} 14. hxg5 {[%clk 0:01:25]}  Kf7 {[%clk 0:02:22]} 15. h4 {[%clk 0:01:05]}  Ne7 {[%clk 0:02:16]} 16. Nf6 {[%clk 0:01:00]}  a5 {[%clk 0:02:07]} 17. b4 {[%clk 0:00:52]}  axb4 {[%clk 0:02:01]} 18. axb4 {[%clk 0:00:53]}  Rxa1 {[%clk 0:02:02]} 19. Qxa1 {[%clk 0:00:53]}  cxb4 {[%clk 0:02:03]} 20. Rb1 {[%clk 0:00:37]}  Nc6 {[%clk 0:01:57]} 21. d4 {[%clk 0:00:27]}  e4 {[%clk 0:01:53]} 22. d5 {[%clk 0:00:27]}  exf3 {[%clk 0:01:49]} 23. dxe6+ {[%clk 0:00:27]}  Bxe6 {[%clk 0:01:44]} 24. Bxf3 {[%clk 0:00:27]}  Qa8 {[%clk 0:01:31]} 25. Qxa8 {[%clk 0:00:17]}  Rxa8 {[%clk 0:01:32]} 26. Bxc6 {[%clk 0:00:17]}  bxc6 {[%clk 0:01:25]} 27. Rxb4 {[%clk 0:00:18]}  Ra7 {[%clk 0:01:24]} 28. Rb8 {[%clk 0:00:11]}  Bxc4 {[%clk 0:01:20]} 29. Rh8 {[%clk 0:00:12]}  Ra4 {[%clk 0:01:08]} 30. Rh7+ {[%clk 0:00:09]}  Ke6 {[%clk 0:01:05]} 31. Rh6 {[%clk 0:00:08]}  f4 {[%clk 0:00:59]} 32. Rxg6 {[%clk 0:00:05]}  fxe3 {[%clk 0:00:59]} 33. fxe3 {[%clk 0:00:06]}  Kf5 {[%clk 0:00:50]} 34. Rh6 {[%clk 0:00:05]}  c5 {[%clk 0:00:39]} 35. Nd7 {[%clk 0:00:03]}  Kg4 {[%clk 0:00:32]} 36. Kf2 {[%clk 0:00:01]}  Ra2+ {[%clk 0:00:26]} 37. Ke1 {[%clk 0:00:01]}  Re2+ {[%clk 0:00:12]} 38. Kd1 {[%clk 0:00:02]}  Rxe3 {[%clk 0:00:11]} 39. Rxd6 {[%clk 0:00:02]}  Rd3+ {[%clk 0:00:11]} 40. Rxd3 {[%clk 0:00:02]}  Bxd3 {[%clk 0:00:11]} 41. Nxc5 {[%clk 0:00:02]}  Bg6 {[%clk 0:00:12]} 42. Nd7 {[%clk 0:00:02]}  Kxh4 {[%clk 0:00:12]} 43. Ne5 {[%clk 0:00:02]}  Kxg5 {[%clk 0:00:12]} 1/2-1/2


[Site "https://www.chess.com"]

[Event "Titled Tuesday Blitz January 10 Early 2023"]
[White "Cepo, Toni"]
[Black "Kirillov, Dmitry"]
[WhiteFideId "4675916"]
[BlackFideId "34180572"]
[WhiteElo "2145"]
[BlackElo "2179"]
[Result "1-0"]
[Round "07"]
[TimeControl "180+2"]
[Date "2023.01.10"]
[WhiteClock "0:00:26"]
[BlackClock "0:00:13"]

1. e4 {[%clk 0:02:47]}  c6 {[%clk 0:03:00]} 2. d4 {[%clk 0:02:46]}  d5 {[%clk 0:03:00]} 3. exd5 {[%clk 0:02:46]}  cxd5 {[%clk 0:03:01]} 4. c3 {[%clk 0:02:45]}  Nc6 {[%clk 0:03:02]} 5. Bf4 {[%clk 0:02:42]}  Nf6 {[%clk 0:03:03]} 6. Nf3 {[%clk 0:02:41]}  g6 {[%clk 0:03:04]} 7. Nbd2 {[%clk 0:02:39]}  Bg7 {[%clk 0:03:04]} 8. Bb5 {[%clk 0:02:38]}  O-O {[%clk 0:03:04]} 9. O-O {[%clk 0:02:38]}  Bf5 {[%clk 0:03:03]} 10. Nh4 {[%clk 0:02:35]}  Bd7 {[%clk 0:03:01]} 11. Nhf3 {[%clk 0:02:33]}  Ne4 {[%clk 0:03:01]} 12. Bxc6 {[%clk 0:02:09]}  bxc6 {[%clk 0:03:00]} 13. Nxe4 {[%clk 0:02:08]}  dxe4 {[%clk 0:03:01]} 14. Ne5 {[%clk 0:02:09]}  f6 {[%clk 0:02:58]} 15. Qb3+ {[%clk 0:02:08]}  e6 {[%clk 0:02:56]} 16. Nc4 {[%clk 0:02:08]}  Kh8 {[%clk 0:02:51]} 17. Rfe1 {[%clk 0:02:02]}  Qe7 {[%clk 0:02:44]} 18. Bd6 {[%clk 0:02:01]}  Qf7 {[%clk 0:02:37]} 19. Bxf8 {[%clk 0:01:59]}  Rxf8 {[%clk 0:02:38]} 20. Rxe4 {[%clk 0:01:58]}  Qe7 {[%clk 0:02:32]} 21. Rae1 {[%clk 0:01:52]}  c5 {[%clk 0:02:29]} 22. d5 {[%clk 0:01:40]}  e5 {[%clk 0:02:28]} 23. Qb7 {[%clk 0:01:34]}  f5 {[%clk 0:01:54]} 24. R4e2 {[%clk 0:01:16]}  e4 {[%clk 0:01:44]} 25. Qxa7 {[%clk 0:01:12]}  Qf7 {[%clk 0:01:37]} 26. Nb6 {[%clk 0:01:03]}  Bb5 {[%clk 0:01:19]} 27. Qxf7 {[%clk 0:00:53]}  Rxf7 {[%clk 0:01:20]} 28. c4 {[%clk 0:00:52]}  Be8 {[%clk 0:01:20]} 29. a4 {[%clk 0:00:52]}  Ra7 {[%clk 0:01:14]} 30. b3 {[%clk 0:00:51]}  Bc3 {[%clk 0:01:01]} 31. Rc1 {[%clk 0:00:48]}  Bd4 {[%clk 0:01:00]} 32. Nc8 {[%clk 0:00:44]}  Ra8 {[%clk 0:00:55]} 33. Nd6 {[%clk 0:00:44]}  Bd7 {[%clk 0:00:55]} 34. Nb5 {[%clk 0:00:44]}  Be5 {[%clk 0:00:44]} 35. f3 {[%clk 0:00:35]}  Bf4 {[%clk 0:00:38]} 36. Rce1 {[%clk 0:00:33]}  Bxb5 {[%clk 0:00:26]} 37. a5 {[%clk 0:00:28]}  Bd7 {[%clk 0:00:22]} 38. fxe4 {[%clk 0:00:28]}  Be5 {[%clk 0:00:21]} 39. exf5 {[%clk 0:00:26]}  Bd4+ {[%clk 0:00:22]} 40. Kh1 {[%clk 0:00:27]}  Bxf5 {[%clk 0:00:22]} 41. Re8+ {[%clk 0:00:26]}  Rxe8 {[%clk 0:00:19]} 42. Rxe8+ {[%clk 0:00:27]}  Kg7 {[%clk 0:00:19]} 43. a6 {[%clk 0:00:28]}  Bc8 {[%clk 0:00:13]} 44. Rxc8 {[%clk 0:00:26]} 1-0


[Site "https://www.chess.com"]

[Event "Titled Tuesday Blitz January 10 Early 2023"]
[White "Lesbekova, Assel"]
[Black "Shubenkova, Veronika"]
[WhiteFideId "13713248"]
[BlackFideId "44124040"]
[WhiteElo "1772"]
[BlackElo "1960"]
[Result "1-0"]
[Round "07"]
[TimeControl "180+2"]
[Date "2023.01.10"]
[WhiteClock "0:00:54"]
[BlackClock "0:02:27"]

1. e4 {[%clk 0:02:57]}  c6 {[%clk 0:02:59]} 2. d4 {[%clk 0:02:55]}  d5 {[%clk 0:02:59]} 3. Nd2 {[%clk 0:02:54]}  dxe4 {[%clk 0:02:59]} 4. Nxe4 {[%clk 0:02:55]}  Bf5 {[%clk 0:02:59]} 5. Ng3 {[%clk 0:02:55]}  Bg6 {[%clk 0:03:00]} 6. h4 {[%clk 0:02:52]}  h6 {[%clk 0:03:00]} 7. Nh3 {[%clk 0:02:52]}  Nf6 {[%clk 0:02:56]} 8. Nf4 {[%clk 0:02:52]}  Bh7 {[%clk 0:02:55]} 9. c3 {[%clk 0:02:49]}  e6 {[%clk 0:02:54]} 10. Qb3 {[%clk 0:02:42]}  Qc7 {[%clk 0:02:51]} 11. Ngh5 {[%clk 0:02:40]}  Nd5 {[%clk 0:02:47]} 12. Nxd5 {[%clk 0:02:36]}  exd5 {[%clk 0:02:44]} 13. Bf4 {[%clk 0:02:35]}  Qe7+ {[%clk 0:02:44]} 14. Kd2 {[%clk 0:02:24]}  Bf5 {[%clk 0:02:36]} 15. Re1 {[%clk 0:01:58]}  Be6 {[%clk 0:02:35]} 16. Be5 {[%clk 0:01:35]}  Rg8 {[%clk 0:02:33]} 17. Bd3 {[%clk 0:01:29]}  f6 {[%clk 0:02:31]} 18. Bxf6 {[%clk 0:00:55]}  gxf6 {[%clk 0:02:28]} 19. Rxe6 {[%clk 0:00:55]}  Qxe6 {[%clk 0:02:27]} 20. Re1 {[%clk 0:00:56]}  Qxe1+ {[%clk 0:02:27]} 21. Kxe1 {[%clk 0:00:57]}  Rxg2 {[%clk 0:02:27]} 22. Qxb7 {[%clk 0:00:54]} 1-0


[Site "https://www.chess.com"]

[Event "Titled Tuesday Blitz January 10 Early 2023"]
[White "Ilkhomi, Jaloliddin"]
[Black "Ruge, Edison"]
[WhiteFideId "14700948"]
[BlackFideId "4401000"]
[WhiteElo "1997"]
[BlackElo "2201"]
[Result "1-0"]
[Round "07"]
[TimeControl "180+2"]
[Date "2023.01.10"]
[WhiteClock "0:00:13"]
[BlackClock "0:00:01"]

1. Nf3 {[%clk 0:03:00]}  d6 {[%clk 0:01:20]} 2. g3 {[%clk 0:02:52]}  Nf6 {[%clk 0:01:20]} 3. Bg2 {[%clk 0:02:52]}  g6 {[%clk 0:01:21]} 4. d4 {[%clk 0:02:52]}  Bg7 {[%clk 0:01:20]} 5. b3 {[%clk 0:02:52]}  O-O {[%clk 0:01:21]} 6. Bb2 {[%clk 0:02:53]}  c6 {[%clk 0:01:21]} 7. O-O {[%clk 0:02:53]}  Bf5 {[%clk 0:01:20]} 8. Nbd2 {[%clk 0:02:49]}  d5 {[%clk 0:01:18]} 9. Re1 {[%clk 0:02:47]}  Re8 {[%clk 0:01:17]} 10. Ne5 {[%clk 0:02:45]}  Ne4 {[%clk 0:01:14]} 11. Nxe4 {[%clk 0:02:42]}  Bxe4 {[%clk 0:01:13]} 12. f3 {[%clk 0:02:38]}  Bf5 {[%clk 0:01:13]} 13. e4 {[%clk 0:02:39]}  dxe4 {[%clk 0:01:12]} 14. fxe4 {[%clk 0:02:40]}  Be6 {[%clk 0:01:11]} 15. Nf3 {[%clk 0:02:35]}  Bg4 {[%clk 0:01:10]} 16. Qd3 {[%clk 0:02:32]}  c5 {[%clk 0:01:09]} 17. c3 {[%clk 0:02:30]}  cxd4 {[%clk 0:01:06]} 18. cxd4 {[%clk 0:02:28]}  Nc6 {[%clk 0:01:06]} 19. Rad1 {[%clk 0:02:28]}  Qb6 {[%clk 0:00:56]} 20. Kh1 {[%clk 0:02:10]}  Rad8 {[%clk 0:00:55]} 21. Rf1 {[%clk 0:01:39]}  Bxf3 {[%clk 0:00:54]} 22. Qxf3 {[%clk 0:01:39]}  Rf8 {[%clk 0:00:48]} 23. e5 {[%clk 0:01:16]}  Nxd4 {[%clk 0:00:47]} 24. Bxd4 {[%clk 0:01:15]}  Rxd4 {[%clk 0:00:45]} 25. Rxd4 {[%clk 0:01:16]}  Qxd4 {[%clk 0:00:45]} 26. Qxb7 {[%clk 0:01:16]}  Bxe5 {[%clk 0:00:32]} 27. Qxe7 {[%clk 0:01:12]}  h5 {[%clk 0:00:32]} 28. Re1 {[%clk 0:01:00]}  Bd6 {[%clk 0:00:28]} 29. Qg5 {[%clk 0:00:57]}  h4 {[%clk 0:00:24]} 30. Bd5 {[%clk 0:00:42]}  Kg7 {[%clk 0:00:20]} 31. gxh4 {[%clk 0:00:32]}  Bf4 {[%clk 0:00:20]} 32. Qg2 {[%clk 0:00:30]}  Rh8 {[%clk 0:00:17]} 33. Qe4 {[%clk 0:00:23]}  Qf2 {[%clk 0:00:13]} 34. Qe2 {[%clk 0:00:13]}  Qxh4 {[%clk 0:00:10]} 35. Rf1 {[%clk 0:00:13]}  Qxh2+ {[%clk 0:00:09]} 36. Qxh2 {[%clk 0:00:13]}  Rxh2+ {[%clk 0:00:09]} 37. Kg1 {[%clk 0:00:14]}  Rh4 {[%clk 0:00:08]} 38. Re1 {[%clk 0:00:13]}  g5 {[%clk 0:00:08]} 39. Re7 {[%clk 0:00:13]}  Kg6 {[%clk 0:00:04]} 40. Rxf7 {[%clk 0:00:13]}  Rh2 {[%clk 0:00:03]} 41. Rxa7 {[%clk 0:00:13]}  Rd2 {[%clk 0:00:02]} 42. Be4+ {[%clk 0:00:13]}  Kh5 {[%clk 0:00:02]} 43. Bf5 {[%clk 0:00:12]}  Kh4 {[%clk 0:00:02]} 44. Rh7+ {[%clk 0:00:12]}  Kg3 {[%clk 0:00:01]} 45. Rh3# {[%clk 0:00:13]} 1-0


[Site "https://www.chess.com"]